fUST/lending_fUST_20241112
["ID","MTS","AMOUNT","RATE_DAILY","PERIOD"]
[342081545,1731419438996,-151.0,0.00021917,2]
[342081546,1731419439005,-151.0,0.00021917,2]
[342081547,1731419439015,-520.63126266,0.00021917,2]
[342081548,1731419439027,-151.0,0.00021917,2]
[342081549,1731419439036,-151.0,0.00021917,2]
[342081550,1731419439046,-509.72095818,0.00021917,2]
[342081551,1731419439055,-500.0,0.00021917,2]
[342081552,1731419439064,-500.0,0.00021917,2]
[342081553,1731419439074,-500.0,0.00021917,2]
[342081554,1731419439083,-500.0,0.00021917,2]
[342081555,1731419439093,-500.0,0.00021917,2]
[342081556,1731419439102,-500.0,0.00021917,2]
[342081557,1731419439112,-1806.66,0.00021917,2]
[342081558,1731419439121,-151.0,0.00021917,2]
[342081559,1731419439130,-500.0,0.00021917,2]
[342081560,1731419439140,-500.0,0.00021917,2]
[342081561,1731419439149,-500.0,0.00021917,2]
[342081562,1731419439158,-500.0,0.00021917,2]
[342081563,1731419439168,-500.0,0.00021917,2]
[342081564,1731419439178,-500.0,0.00021917,2]
[342081565,1731419439187,-500.0,0.00021917,2]
[342081566,1731419439196,-151.0,0.00021917,2]
[342081567,1731419439206,-151.0,0.00021917,2]
[342081568,1731419439215,-151.0,0.00021917,2]
[342081569,1731419439224,-151.0,0.00021917,2]
[342081570,1731419439234,-500.0,0.00021917,2]
[342081571,1731419439244,-500.0,0.00021917,2]
[342081572,1731419439254,-500.0,0.00021917,2]
[342081573,1731419439264,-500.0,0.00021917,2]
[342081574,1731419439277,-500.0,0.00021917,2]
[342081575,1731419439287,-500.0,0.00021917,2]
[342081576,1731419439296,-500.0,0.00021917,2]
[342081577,1731419439306,-500.0,0.00021917,2]
[342081578,1731419439315,-500.0,0.00021917,2]
[342081579,1731419439324,-528.9,0.00021917,2]
[342081580,1731419439333,-500.0,0.00021917,2]
[342081581,1731419439343,-500.0,0.00021917,2]
[342081582,1731419439352,-500.0,0.00021917,2]
[342081583,1731419439362,-500.0,0.00021917,2]
[342081584,1731419439371,-500.0,0.00021917,2]
[342081585,1731419439381,-500.0,0.00021917,2]
[342081586,1731419439391,-151.0,0.00021917,2]
[342081587,1731419439402,-500.0,0.00021917,2]
[342081588,1731419439411,-689.65,0.00021917,2]
[342081589,1731419439421,-303.29114737,0.00021917,2]
[342081590,1731419439431,-151.0,0.00021917,2]
[342081591,1731419439441,-151.0,0.00021917,2]
[342081592,1731419439453,-477.35919107,0.00021917,2]
[342081593,1731419439462,-500.0,0.00021917,2]
[342081594,1731419439471,-500.0,0.00021917,2]
[342081595,1731419439481,-500.0,0.00021917,2]
[342081596,1731419439490,-500.0,0.00021917,2]
[342081597,1731419439500,-500.0,0.00021917,2]
[342081598,1731419439509,-500.0,0.00021917,2]
[342081599,1731419439519,-500.0,0.00021917,2]
[342081600,1731419439532,-929.25,0.00021917,2]
[342081601,1731419439542,-151.0,0.00021917,2]
[342081602,1731419439551,-691.0,0.00021917,2]
[342081603,1731419439561,-500.0,0.00021917,2]
[342081604,1731419439570,-151.0,0.00021917,2]
[342081605,1731419439580,-500.0,0.00021917,2]
[342081606,1731419439589,-500.0,0.00021917,2]
[342081607,1731419439598,-500.0,0.00021917,2]
[342081608,1731419439608,-500.0,0.00021917,2]
[342081609,1731419439617,-246.76392114,0.00021917,2]
[342081610,1731419439626,-500.0,0.00021917,2]
[342081611,1731419439635,-500.0,0.00021917,2]
[342081612,1731419439644,-321.56,0.00021917,2]
[342081613,1731419439654,-500.0,0.00021917,2]
[342081614,1731419439663,-500.0,0.00021917,2]
[342081615,1731419439672,-500.0,0.00021917,2]
[342081616,1731419439682,-500.0,0.00021917,2]
[342081617,1731419439691,-516.92069076,0.00021917,2]
[342081618,1731419439700,-500.0,0.00021917,2]
[342081619,1731419439804,-500.0,0.00021917,2]
[342081620,1731419439814,-500.0,0.00021917,2]
[342081621,1731419439823,-500.0,0.00021917,2]
[342081622,1731419439832,-550.46,0.00021917,2]
[342081623,1731419439842,-500.0,0.00021917,2]
[342081624,1731419439851,-649.34,0.00021917,2]
[342081625,1731419439860,-500.0,0.00021917,2]
[342081626,1731419439869,-151.0,0.00021917,2]
[342081627,1731419439885,-170.75324,0.00021917,2]
[342081628,1731419439899,-400.43900493,0.00021917,2]
[342081629,1731419439910,-500.0,0.00021917,2]
[342081630,1731419439920,-500.0,0.00021917,2]
[342081631,1731419439930,-500.0,0.00021917,2]
[342081632,1731419439940,-500.0,0.00021917,2]
[342081633,1731419439950,-500.0,0.00021917,2]
[342081634,1731419439960,-500.0,0.00021917,2]
[342081635,1731419439970,-8095.26243312,0.00021917,2]
[342081636,1731419439987,-10282.97756688,0.00021917,2]
[342081637,1731419439996,-3108.18,0.00021917,2]
[342081638,1731419440007,-500.0,0.00021917,2]
[342081639,1731419440017,-500.0,0.00021917,2]
[342081640,1731419440029,-534.63,0.00021917,2]
[342081641,1731419440038,-500.0,0.00021917,2]
[342081642,1731419440048,-151.0,0.00021917,2]
[342081643,1731419440058,-500.0,0.00021917,2]
[342081644,1731419440068,-500.0,0.00021917,2]
[342081645,1731419440078,-1385.44,0.00021917,2]
[342081646,1731419440088,-568.68557058,0.00021917,2]
[342081647,1731419440099,-500.0,0.00021917,2]
[342081648,1731419440109,-500.0,0.00021917,2]
[342081649,1731419440119,-500.0,0.00021917,2]
[342081650,1731419440129,-500.0,0.00021917,2]
[342081652,1731419440139,-151.0,0.00021917,2]
[342081654,1731419440149,-2059.07,0.00021917,2]
[342081655,1731419440159,-209.11114463,0.00021917,2]
[342081657,1731419440169,-178.47498037,0.00021917,2]
[342081658,1731419440179,-500.0,0.00021917,2]
[342081659,1731419440189,-151.0,0.00021917,2]
[342081660,1731419440200,-151.0,0.00021917,2]
[342081661,1731419440210,-500.0,0.00021917,2]
[342081662,1731419440219,-151.0,0.00021917,2]
[342081664,1731419440229,-618.13,0.00021917,2]
[342081665,1731419440239,-500.0,0.00021917,2]
[342081666,1731419440248,-602.48,0.00021917,2]
[342081668,1731419440257,-500.0,0.00021917,2]
[342081669,1731419440267,-500.0,0.00021917,2]
[342081670,1731419440280,-1230.97,0.00021917,2]
[342081671,1731419440293,-500.0,0.00021917,2]
[342081672,1731419440303,-500.0,0.00021917,2]
[342081674,1731419440312,-500.0,0.00021917,2]
[342081675,1731419440322,-500.0,0.00021917,2]
[342081676,1731419440332,-809.98,0.00021917,2]
[342081677,1731419440342,-2336.0,0.00021917,2]
[342081678,1731419440351,-500.0,0.00021917,2]
[342081679,1731419440360,-500.0,0.00021917,2]
[342081680,1731419440370,-500.0,0.00021917,2]
[342081681,1731419440380,-927.44,0.00021917,2]
[342081682,1731419440389,-500.0,0.00021917,2]
[342081684,1731419440400,-500.0,0.00021917,2]
[342081685,1731419440410,-500.0,0.00021917,2]
[342081687,1731419440419,-500.0,0.00021917,2]
[342081689,1731419440430,-1679.05,0.00021917,2]
[342081691,1731419440444,-2802.6,0.00021917,2]
[342081692,1731419440455,-500.0,0.00021917,2]
[342081694,1731419440464,-500.0,0.00021917,2]
[342081696,1731419440474,-500.0,0.00021917,2]
[342081697,1731419440483,-500.0,0.00021917,2]
[342081698,1731419440492,-543.94,0.00021917,2]
[342081699,1731419440501,-500.0,0.00021917,2]
[342081701,1731419440511,-502.94346829,0.00021917,2]
[342081703,1731419440520,-500.0,0.00021917,2]
[342081704,1731419440534,-1217.1,0.00021917,2]
[342081705,1731419440544,-500.0,0.00021917,2]
[342081706,1731419440553,-500.0,0.00021917,2]
[342081707,1731419440562,-872.11,0.00021917,2]
[342081708,1731419440572,-500.0,0.00021917,2]
[342081709,1731419440581,-500.0,0.00021917,2]
[342081710,1731419440591,-500.0,0.00021917,2]
[342081712,1731419440601,-500.0,0.00021917,2]
[342081713,1731419440610,-892.62,0.00021917,2]
[342081714,1731419440620,-500.0,0.00021917,2]
[342081715,1731419440629,-683.57,0.00021917,2]
[342081716,1731419440639,-173.50168784,0.00021917,2]
[342081717,1731419440648,-500.0,0.00021917,2]
[342081718,1731419440658,-500.0,0.00021917,2]
[342081719,1731419440667,-867.39,0.00021917,2]
[342081720,1731419440676,-500.0,0.00021917,2]
[342081721,1731419440686,-500.0,0.00021917,2]
[342081722,1731419440695,-998.74,0.00021917,2]
[342081723,1731419440705,-500.0,0.00021917,2]
[342081724,1731419440715,-500.0,0.00021917,2]
[342081725,1731419440724,-500.0,0.00021917,2]
[342081726,1731419440734,-500.0,0.00021917,2]
[342081727,1731419440744,-7113.3,0.00021917,2]
[342081729,1731419440753,-675.78,0.00021917,2]
[342081731,1731419440763,-500.0,0.00021917,2]
[342081732,1731419440773,-500.0,0.00021917,2]
[342081733,1731419440788,-500.0,0.00021917,2]
[342081734,1731419440796,-500.0,0.00021917,2]
[342081735,1731419440806,-786.24,0.00021917,2]
[342081736,1731419440815,-508.44869711,0.00021917,2]
[342081737,1731419440824,-6071.66,0.00021917,2]
[342081738,1731419440834,-328.31473729,0.00021917,2]
[342081739,1731419440843,-1122.98,0.00021917,2]
[342081740,1731419440852,-500.0,0.00021917,2]
[342081741,1731419440861,-1055.96,0.00021917,2]
[342081742,1731419440871,-500.0,0.00021917,2]
[342081743,1731419440880,-500.0,0.00021917,2]
[342081744,1731419440889,-1040.75,0.00021917,2]
[342081745,1731419440899,-500.0,0.00021917,2]
[342081746,1731419440908,-2684.43214702,0.00021917,2]
[342081747,1731419441116,-8033.36785298,0.00021917,2]
[342081748,1731419441126,-500.0,0.00021917,2]
[342081749,1731419441135,-500.0,0.00021917,2]
[342081750,1731419441144,-500.0,0.00021917,2]
[342081751,1731419441154,-1413.4,0.00021917,2]
[342081752,1731419441163,-500.0,0.00021917,2]
[342081753,1731419441172,-500.0,0.00021917,2]
[342081754,1731419441182,-3423.47,0.00021917,2]
[342081755,1731419441191,-562.7,0.00021917,2]
[342081756,1731419441200,-500.0,0.00021917,2]
[342081757,1731419441210,-500.0,0.00021917,2]
[342081758,1731419441220,-500.0,0.00021917,2]
[342081759,1731419441229,-500.0,0.00021917,2]
[342081760,1731419441239,-500.0,0.00021917,2]
[342081761,1731419441248,-155.43782732,0.00021917,2]
[342081762,1731419441258,-500.0,0.00021917,2]
[342081763,1731419441269,-151.0,0.00021917,2]
[342081764,1731419441289,-500.0,0.00021917,2]
[342081765,1731419441299,-151.0,0.00021917,2]
[342081766,1731419441308,-500.0,0.00021917,2]
[342081767,1731419441318,-500.0,0.00021917,2]
[342081768,1731419441327,-500.0,0.00021917,2]
[342081769,1731419441336,-500.0,0.00021917,2]
[342081770,1731419441346,-4420.24,0.00021917,2]
[342081771,1731419441356,-500.0,0.00021917,2]
[342081772,1731419441365,-410.67589186,0.00021917,2]
[342081773,1731419441375,-638.74762825,0.00021917,2]
[342081774,1731419441386,-500.0,0.00021917,2]
[342081775,1731419441396,-500.0,0.00021917,2]
[342081776,1731419441406,-550.97,0.00021917,2]
[342081777,1731419441416,-166.666666,0.00021918,2]
[342081778,1731419441426,-500.0,0.00021973,2]
[342081779,1731419441439,-638.22368913,0.00021973,2]
[342081780,1731419441449,-161.11728841,0.00021973,2]
[342081781,1731419441458,-500.0,0.00021973,2]
[342081782,1731419441468,-500.0,0.00021973,2]
[342081783,1731419441478,-500.0,0.00021973,2]
[342081784,1731419441488,-500.0,0.00021973,2]
[342081785,1731419441599,-500.0,0.00021973,2]
[342081786,1731419441609,-613.13211248,0.00021973,2]
[342081787,1731419441619,-500.0,0.00021973,2]
[342081788,1731419441629,-500.0,0.00021973,2]
[342081789,1731419441639,-500.0,0.00021973,2]
[342081790,1731419441649,-159.0,0.00022,2]
[342081791,1731419441659,-314.0,0.00022,2]
[342081792,1731419441669,-167.0,0.00022,2]
[342081793,1731419441678,-1519.47945427,0.00022023,2]
[342081794,1731419441688,-6000.0,0.00022091,2]
[342081795,1731419441698,-500.0,0.00022173,2]
[342081796,1731419441707,-500.0,0.00022173,2]
[342081797,1731419441717,-500.0,0.00022173,2]
[342081798,1731419441727,-500.0,0.00022173,2]
[342081799,1731419441737,-500.0,0.00022173,2]
[342081800,1731419441747,-500.0,0.00022173,2]
[342081801,1731419441756,-500.0,0.00022173,2]
[342081802,1731419441766,-500.0,0.00022173,2]
[342081803,1731419441779,-5991.01481422,0.0002219,2]
[342081804,1731419441789,-151.0,0.00022191,7]
[342081805,1731419441799,-226.947493,0.00022191,7]
[342081806,1731419441808,-151.0,0.00022191,7]
[342081807,1731419441818,-151.0,0.00022191,7]
[342081808,1731419441828,-151.0,0.00022191,7]
[342081809,1731419441838,-161.24924,0.00022191,7]
[342081810,1731419441847,-500.0,0.00022191,2]
[342081811,1731419441856,-407.80800974,0.00022191,2]
[342081812,1731419441866,-493.19002456,0.00022191,2]
[342081813,1731419441875,-482.41792612,0.00022191,2]
[342081814,1731419441884,-500.0,0.00022191,2]
[342081815,1731419441894,-500.0,0.00022191,2]
[342081816,1731419441904,-1806.66,0.00022191,2]
[342081817,1731419441913,-500.0,0.00022191,2]
[342081818,1731419441923,-500.0,0.00022191,2]
[342081819,1731419441932,-500.0,0.00022191,2]
[342081820,1731419441941,-500.0,0.00022191,2]
[342081821,1731419441950,-352.15075599,0.00022191,2]
[342081822,1731419441960,-524.78461665,0.00022191,2]
[342081823,1731419441969,-500.0,0.00022191,2]
[342081824,1731419441978,-151.0,0.00022191,7]
[342081825,1731419441988,-151.0,0.00022191,7]
[342081826,1731419441998,-151.0,0.00022191,7]
[342081827,1731419442007,-151.0,0.00022191,7]
[342081828,1731419442016,-151.0,0.00022191,7]
[342081829,1731419442028,-151.0,0.00022191,7]
[342081830,1731419442037,-151.0,0.00022191,7]
[342081831,1731419442047,-151.0,0.00022191,7]
[342081832,1731419442056,-151.0,0.00022191,7]
[342081833,1731419442066,-500.0,0.00022191,2]
[342081834,1731419442075,-500.0,0.00022191,2]
[342081835,1731419442085,-500.0,0.00022191,2]
[342081836,1731419442094,-500.0,0.00022191,2]
[342081837,1731419442104,-545.41826878,0.00022191,2]
[342081838,1731419442113,-500.0,0.00022191,2]
[342081839,1731419442123,-500.0,0.00022191,2]
[342081840,1731419442132,-300.5193624,0.00022191,2]
[342081841,1731419442142,-500.0,0.00022191,2]
[342081842,1731419442151,-500.0,0.00022191,2]
[342081843,1731419442161,-500.0,0.00022191,2]
[342081844,1731419442170,-500.0,0.00022191,2]
[342081845,1731419442180,-500.0,0.00022191,2]
[342081846,1731419442189,-500.0,0.00022191,2]
[342081847,1731419442198,-151.0,0.00022191,7]
[342081848,1731419442208,-151.0,0.00022191,7]
[342081849,1731419442217,-689.65,0.00022191,2]
[342081850,1731419442226,-151.0,0.00022191,7]
[342081851,1731419442235,-151.0,0.00022191,7]
[342081852,1731419442245,-151.0,0.00022191,7]
[342081853,1731419442255,-151.0,0.00022191,7]
[342081854,1731419442265,-225.846466,0.00022191,7]
[342081855,1731419442276,-500.0,0.00022191,2]
[342081856,1731419442288,-500.0,0.00022191,2]
[342081857,1731419442298,-500.0,0.00022191,2]
[342081858,1731419442308,-500.0,0.00022191,2]
[342081859,1731419442317,-500.0,0.00022191,2]
[342081860,1731419442327,-500.0,0.00022191,2]
[342081861,1731419442336,-546.92497959,0.00022191,2]
[342081862,1731419442345,-929.25,0.00022191,2]
[342081863,1731419442355,-151.0,0.00022191,7]
[342081864,1731419442365,-239.01394,0.00022191,7]
[342081865,1731419442375,-691.0,0.00022191,2]
[342081866,1731419442385,-500.0,0.00022191,2]
[342081867,1731419442395,-151.0,0.00022191,7]
[342081868,1731419442404,-208.169344,0.00022191,7]
[342081869,1731419442414,-500.0,0.00022191,2]
[342081870,1731419442423,-280.30458997,0.00022191,2]
[342081871,1731419442432,-205.73038524,0.00022191,2]
[342081872,1731419442443,-500.0,0.00022191,2]
[342081873,1731419442454,-500.0,0.00022191,2]
[342081874,1731419442464,-500.0,0.00022191,2]
[342081875,1731419442473,-509.1832411,0.00022191,2]
[342081876,1731419442484,-500.0,0.00022191,2]
[342081877,1731419442494,-500.0,0.00022191,2]
[342081878,1731419442504,-500.0,0.00022191,2]
[342081879,1731419442515,-508.63541294,0.00022191,2]
[342081880,1731419442530,-500.0,0.00022191,2]
[342081881,1731419442540,-550.46,0.00022191,2]
[342081882,1731419442550,-649.34,0.00022191,2]
[342081883,1731419442560,-52.22092929,0.00022191,2]
[342081914,1731419443934,-1169.27083333,0.00020659,2]
[342081916,1731419443944,-500.0,0.00021917,2]
[342081918,1731419443954,-447.77907071,0.00022191,2]
[342081920,1731419443964,-151.0,0.00022191,7]
[342081923,1731419443974,-151.0,0.00022191,7]
[342081926,1731419443983,-151.0,0.00022191,7]
[342081928,1731419443992,-500.0,0.00022191,2]
[342081930,1731419444002,-500.0,0.00022191,2]
[342081931,1731419444011,-430.14210893,0.00022191,2]
[342081932,1731419444021,-326.14150603,0.00022191,2]
[342081933,1731419444040,-173.85849397,0.00022191,2]
[342081934,1731419444050,-18378.24,0.00022191,2]
[342081935,1731419444059,-2855.03976703,0.00022191,2]
[342081936,1731419444071,-253.14023297,0.00022191,2]
[342081937,1731419444080,-500.0,0.00022191,2]
[342081938,1731419444090,-500.0,0.00022191,2]
[342081939,1731419444100,-534.63,0.00022191,2]
[342081940,1731419444110,-500.0,0.00022191,2]
[342081941,1731419444120,-221.492925,0.00022191,7]
[342081942,1731419444129,-500.0,0.00022191,2]
[342081943,1731419444139,-500.0,0.00022191,2]
[342081944,1731419444148,-1385.44,0.00022191,2]
[342081945,1731419444158,-500.0,0.00022191,2]
[342081946,1731419444167,-500.0,0.00022191,2]
[342081947,1731419444177,-500.0,0.00022191,2]
[342081948,1731419444187,-500.0,0.00022191,2]
[342081949,1731419444196,-151.0,0.00022191,7]
[342081950,1731419444206,-2059.07,0.00022191,2]
[342081951,1731419444216,-151.0,0.00022191,7]
[342081952,1731419444226,-151.0,0.00022191,7]
[342081953,1731419444235,-500.0,0.00022191,2]
[342081954,1731419444245,-151.0,0.00022191,7]
[342081955,1731419444254,-151.0,0.00022191,7]
[342081956,1731419444264,-151.0,0.00022191,7]
[342081957,1731419444273,-151.0,0.00022191,7]
[342081958,1731419444288,-275.254357,0.00022191,7]
[342081959,1731419444298,-618.13,0.00022191,2]
[342081960,1731419444308,-500.0,0.00022191,2]
[342081961,1731419444318,-602.48,0.00022191,2]
[342081962,1731419444327,-500.0,0.00022191,2]
[342081963,1731419444338,-500.0,0.00022191,2]
[342081964,1731419444348,-1230.97,0.00022191,2]
[342081965,1731419444359,-500.0,0.00022191,2]
[342081966,1731419444369,-500.0,0.00022191,2]
[342081967,1731419444380,-500.0,0.00022191,2]
[342081968,1731419444390,-500.0,0.00022191,2]
[342081969,1731419444400,-809.98,0.00022191,2]
[342081970,1731419444410,-500.0,0.00022191,2]
[342081971,1731419444420,-500.0,0.00022191,2]
[342081972,1731419444430,-500.0,0.00022191,2]
[342081973,1731419444445,-927.44,0.00022191,2]
[342081974,1731419444455,-536.41748244,0.00022191,2]
[342081975,1731419444465,-500.0,0.00022191,2]
[342081976,1731419444475,-500.0,0.00022191,2]
[342081977,1731419444485,-500.0,0.00022191,2]
[342081978,1731419444495,-1679.05,0.00022191,2]
[342081979,1731419444505,-2802.6,0.00022191,2]
[342081980,1731419444515,-500.0,0.00022191,2]
[342081981,1731419444529,-500.0,0.00022191,2]
[342081982,1731419444539,-500.0,0.00022191,2]
[342081983,1731419444548,-543.94,0.00022191,2]
[342081984,1731419444559,-500.0,0.00022191,2]
[342081985,1731419444655,-500.0,0.00022191,2]
[342081986,1731419444665,-1217.1,0.00022191,2]
[342081987,1731419444675,-500.0,0.00022191,2]
[342081988,1731419444685,-500.0,0.00022191,2]
[342081989,1731419444695,-872.11,0.00022191,2]
[342081990,1731419444705,-500.0,0.00022191,2]
[342081991,1731419444715,-500.0,0.00022191,2]
[342081992,1731419444724,-500.0,0.00022191,2]
[342081993,1731419444734,-500.0,0.00022191,2]
[342081994,1731419444744,-892.62,0.00022191,2]
[342081995,1731419444754,-500.0,0.00022191,2]
[342081996,1731419444764,-683.57,0.00022191,2]
[342081997,1731419444774,-500.0,0.00022191,2]
[342081998,1731419444787,-867.39,0.00022191,2]
[342081999,1731419444798,-500.0,0.00022191,2]
[342082000,1731419444807,-598.86809789,0.00022191,2]
[342082001,1731419444818,-998.74,0.00022191,2]
[342082002,1731419444827,-500.0,0.00022191,2]
[342082003,1731419444837,-500.0,0.00022191,2]
[342082004,1731419444847,-500.0,0.00022191,2]
[342082005,1731419444856,-500.0,0.00022191,2]
[342082006,1731419444866,-500.0,0.00022191,2]
[342082007,1731419444875,-7113.3,0.00022191,2]
[342082008,1731419444885,-675.78,0.00022191,2]
[342082009,1731419444895,-500.0,0.00022191,2]
[342082010,1731419444905,-500.0,0.00022191,2]
[342082011,1731419444914,-500.0,0.00022191,2]
[342082012,1731419444924,-500.0,0.00022191,2]
[342082013,1731419444934,-786.24,0.00022191,2]
[342082014,1731419444943,-6071.66,0.00022191,2]
[342082015,1731419444953,-1122.98,0.00022191,2]
[342082016,1731419444964,-500.0,0.00022191,2]
[342082017,1731419444973,-1055.96,0.00022191,2]
[342082018,1731419444985,-500.0,0.00022191,2]
[342082019,1731419444994,-500.0,0.00022191,2]
[342082020,1731419445005,-1040.75,0.00022191,2]
[342082021,1731419445016,-500.0,0.00022191,2]
[342082022,1731419445029,-10717.8,0.00022191,2]
[342082023,1731419445039,-358.08687254,0.00022191,2]
[342082050,1731419446765,-151.0,0.00021917,2]
[342082052,1731419446775,-275.0,0.00022,2]
[342082054,1731419446789,-1287.12,0.00022091,2]
[342082061,1731419447132,-500.0,0.00021917,2]
[342082062,1731419447142,-1218.22,0.00022091,2]
[342082067,1731419602375,-272.97792101,0.00029041,120]
[342082068,1731419602406,-5921.1412635,0.0003,120]
[342082069,1731419602429,-1074.31,0.00030136,120]
[342082070,1731419602449,-1074.31,0.00030136,120]
[342082071,1731419602470,-1074.31,0.00030136,120]
[342082072,1731419602493,-1074.31,0.00030136,120]
[342082073,1731419602514,-1074.31,0.00030136,120]
[342082074,1731419602536,-240.21163098,0.00030136,120]
[342082082,1731420063519,1169.27083333,0.00020185,2]
[342082104,1731420092462,163.055975,0.00013973,2]
[342082108,1731420256826,442344.432407,0.0001,2]
[342082110,1731420377475,1169.27083333,0.00020185,2]
[342082173,1731420632046,-1169.27083333,0.00020193,2]
[342082175,1731420632056,-191.93230551,0.000207,2]
[342082177,1731420632065,-496.03,0.000208,2]
[342082179,1731420632074,-191.70402,0.00020833,2]
[342082181,1731420632083,-2560.0,0.00021047,2]
[342082183,1731420632092,-1000.0,0.000216,2]
[342082185,1731420632102,-574.71259567,0.00021817,2]
[342082187,1731420632113,-306.36370836,0.00021817,2]
[342082190,1731420632134,-30.61136854,0.00021817,2]
[342082192,1731420632144,-266.349157,0.00021907,3]
[342082242,1731420640097,-54.630843,0.00021907,3]
[342082243,1731420640107,-160.49,0.00021907,3]
[342082244,1731420640116,-481.48,0.00021907,3]
[342082245,1731420640128,-288.89370274,0.00021916,2]
[342082246,1731420640138,-300.0,0.00021916,2]
[342082247,1731420640148,-187.75339948,0.00021917,2]
[342082248,1731420640158,-151.0,0.00021917,2]
[342082249,1731420640168,-151.0,0.00021917,2]
[342082250,1731420640177,-500.0,0.00021917,2]
[342082251,1731420640187,-151.0,0.00021917,2]
[342082252,1731420640197,-633.25863205,0.00021917,2]
[342082253,1731420640206,-500.0,0.00021917,2]
[342082254,1731420640216,-500.0,0.00021917,2]
[342082255,1731420640225,-553.8495525,0.00021917,2]
[342082256,1731420640235,-500.0,0.00021917,2]
[342082257,1731420640245,-500.0,0.00021917,2]
[342082258,1731420640255,-500.0,0.00021917,2]
[342082259,1731420640264,-500.0,0.00021917,2]
[342082260,1731420640274,-500.0,0.00021917,2]
[342082261,1731420640283,-500.0,0.00021917,2]
[342082262,1731420640293,-500.0,0.00021917,2]
[342082263,1731420640302,-500.0,0.00021917,2]
[342082264,1731420640312,-500.0,0.00021917,2]
[342082265,1731420640321,-500.0,0.00021917,2]
[342082266,1731420640332,-500.0,0.00021917,2]
[342082267,1731420640342,-500.0,0.00021917,2]
[342082268,1731420640351,-500.0,0.00021917,2]
[342082269,1731420640360,-500.0,0.00021917,2]
[342082270,1731420640370,-500.0,0.00021917,2]
[342082271,1731420640381,-500.0,0.00021917,2]
[342082272,1731420640392,-500.0,0.00021917,2]
[342082273,1731420640402,-500.0,0.00021917,2]
[342082274,1731420640410,-500.0,0.00021917,2]
[342082275,1731420640420,-500.0,0.00021917,2]
[342082276,1731420640429,-632.18,0.00021917,2]
[342082277,1731420640439,-500.0,0.00021917,2]
[342082278,1731420640447,-608.90226024,0.00021917,2]
[342082279,1731420640457,-201.73733705,0.00021917,2]
[342082280,1731420640466,-500.0,0.00021917,2]
[342082281,1731420640476,-427.79019917,0.00021917,2]
[342082282,1731420640485,-500.0,0.00021917,2]
[342082283,1731420640495,-500.0,0.00021917,2]
[342082284,1731420640504,-500.0,0.00021917,2]
[342082285,1731420640513,-500.0,0.00021917,2]
[342082286,1731420640523,-500.0,0.00021917,2]
[342082287,1731420640532,-259.44494162,0.00021917,2]
[342082288,1731420640541,-500.0,0.00021917,2]
[342082289,1731420640550,-500.0,0.00021917,2]
[342082290,1731420640559,-645.70476968,0.00021917,2]
[342082291,1731420640568,-194.42145591,0.00021917,2]